Cogmind - Beta 11 X8 @@@ ROGUE MODE // 2021.11.27 @ 17:00:33 Player: szymekc Result: Destroyed by RD-OAL(z) with Zionite Laser-S Performance ------------- Evolutions (4) 2000 Regions Visited (15) 3000 Robots Destroyed (61) 305 Value Destroyed (2222) 2222 Prototype IDs (20) 400 Alien Tech Used (0) 0 Bonus (989) 989 TOTAL SCORE: 8916 Bonus ------- Follower Combat Kills 89 Met Data Miner 300 Met Imprinter 300 Was Imprinted 300 Cogmind --------- Core Integrity 0/850 Matter 291/300 Energy 88/100 System Corruption 0% Temperature Cool (9) Movement Flying (44) Location -6/Deep Caves Parts ------- > --- POWER (1) -------- (None) > --- PROPULSION (5) --- Improved Flight Unit Makeshift Flight Unit > --- UTILITY (7) ------ Enhanced Optical Array Advanced Melee Analysis Suite Advanced Melee Analysis Suite Advanced Melee Analysis Suite Hacking Suite Improved Hacking Suite > --- WEAPON (2) ------- RU-N14's Throwing Claymores Falx > --- INVENTORY (5) ---- Improved Carbon-fiber Leg Remote Datajack RU-N14's Throwing Claymores (10) RU-N14's Throwing Claymores (10) GAL Module Peak State ------------ > --- POWER ------------ Micro Nuclear Core > --- PROPULSION ------- Improved Carbon-fiber Leg Improved Flight Unit Makeshift Flight Unit > --- UTILITY ---------- Enhanced Optical Array Advanced Melee Analysis Suite Advanced Melee Analysis Suite Advanced Melee Analysis Suite Hacking Suite Improved Hacking Suite Hacking Drone Bay > --- WEAPON ----------- RU-N14's Throwing Claymores Falx > --- INVENTORY -------- Advanced Weight Redist. System Dirty Datajack Remote Datajack RU-N14's Throwing Claymores GAL Module [Rating: 66] Favorites ----------- Power Micro Nuclear Core Engine Ion Engine Power Core Micro Nuclear Core Propulsion Improved Carbon-fiber Leg Leg Improved Carbon-fiber Leg Hover Unit Gravmag System Flight Unit Improved Flight Unit Utility Advanced Melee Analysis Suite Device Improved Sensor Array Storage Medium Storage Unit Processor Advanced Melee Analysis Suite Hackware Hacking Suite Protection Medium Armor Plating Weapon Falx Energy Gun Advanced Beam Rifle Energy Cannon Beam Cannon Ballistic Gun Assault Rifle Special Weapon RU-N14's Throwing Claymores Impact Weapon Impact Mace Slashing Weapon Falx Special Melee Weapon Dirty Datajack Build | -11 -10 -10 -9 -9 -8 -7 -7 -7 -7 -6 -6 -6 -6 -6 -6 ------- Run | Scr Mat Min Mat Min Mat Fac Low Low Dat Pro Fac Low Low Zio Dee Slots Evolved 8 | . . . 2 . 2 2 . . . . 2 . . . . Power . | . . . . . . . . . . . . . . . . Propulsion 3 | . . . 1 . . 1 . . . . 1 . . . . Utility 5 | . . . 1 . 2 1 . . . . 1 . . . . Weapon . | . . . . . . . . . . . . . . . . Parts Attached 118 | . 5 3 9 . 40 13 . 5 . 7 28 4 . 4 . Power 12 | . . 1 1 . 2 3 . . . 1 3 1 . . . Engine 5 | . . 1 1 . 1 1 . . . . 1 . . . . Core 7 | . . . . . 1 2 . . . 1 2 1 . . . Reactor . | . . . . . . . . . . . . . . . . Propulsion 38 | . . 1 2 . 13 2 . 2 . 4 12 2 . . . Treads . | . . . . . . . . . . . . . . . . Leg 24 | . . 1 2 . 12 2 . . . . 6 1 . . . Wheel . | . . . . . . . . . . . . . . . . Hover 1 | . . . . . . . . . . . 1 . . . . Flight 13 | . . . . . 1 . . 2 . 4 5 1 . . . Utility 33 | . 2 . 1 . 11 4 . 2 . 1 9 . . 3 . Device 13 | . 1 . 1 . 6 2 . . . . 1 . . 2 . Storage 3 | . 1 . . . 2 . . . . . . . . . . Processor 9 | . . . . . 2 2 . . . . 5 . . . . Hackware 4 | . . . . . . . . . . 1 2 . . 1 . Protection 4 | . . . . . 1 . . 2 . . 1 . . . . Artifact . | . . . . . . . . . . . . . . . . Weapon 35 | . 3 1 5 . 14 4 . 1 . 1 4 1 . 1 . Energy Gun 7 | . . . 1 . 6 . . . . . . . . . . Energy Cannon 2 | . 1 . . . 1 . . . . . . . . . . Ballistic Gun 7 | . 1 1 2 . 3 . . . . . . . . . . Ballistic Cannon . | . . . . . . . . . . . . . . . . Launcher . | . . . . . . . . . . . . . . . . Special Weapon 3 | . . . 2 . . . . . . . . . . 1 . Impact Weapon 1 | . . . . . . 1 . . . . . . . . . Slashing Weapon 13 | . . . . . 4 3 . 1 . 1 4 . . . . Piercing Weapon . | . . . . . . . . . . . . . . . . Special Melee Weapon 2 | . 1 . . . . . . . . . . 1 . . . Unidentified Prototypes 7 | . . . 1 . 2 2 . . . . . . . 2 . Parts Lost 30 | . . . 1 . 6 . . 1 . 3 17 . . . 2 Power 3 | . . . . . . . . . . . 2 . . . 1 Propulsion 12 | . . . . . 1 . . . . 1 10 . . . . Utility 11 | . . . . . 3 . . 1 . 2 4 . . . 1 Weapon 4 | . . . 1 . 2 . . . . . 1 . . . . Highest Loss Streak 10 | . . . 1 . 4 . . 1 . 3 10 . . . 2 Average Slot Usage (%) 91 | . 95 100 94 100 90 99 100 97 92 85 83 68 86 86 79 Engine 5 | . 14 14 11 11 5 . 7 7 7 2 . . . . . Core 2 | . . . . . 3 6 . . . 4 3 4 6 6 5 Leg 20 | . 28 28 28 33 25 30 30 25 23 9 7 1 6 6 . Flight 5 | . . . . . . . . 5 7 20 18 7 13 13 13 Device 11 | . 1 14 22 22 19 23 15 5 . . . 6 6 6 5 Storage 7 | . 21 14 11 11 9 7 7 7 7 7 5 . . . . Processor 15 | . . . . . 8 14 23 23 23 17 18 33 33 30 26 Hackware 2 | . . . . . . . . . . 3 10 6 6 8 13 Energy Gun 3 | . 5 . 4 11 12 3 . . . . . . . . . Energy Cannon 2 | . 8 14 7 . . . . . . . . . . . . Ballistic Gun 2 | . 13 14 8 . 2 . . . . . . . . . . Impact Weapon 1 | . . . . . . 4 7 7 7 2 . . . . . Slashing Weapon 4 | . . . . . 1 5 7 7 7 11 12 6 6 6 6 Naked Turns . | . . . . . . . . . . . . . . . . Heaviest Build 34 | 13 19 16 20 18 33 28 28 34 32 32 28 11 11 18 18 Greatest Support 72 | 20 20 20 30 30 54 72 69 69 51 51 68 68 22 22 22 Greatest Overweight (x) 2 | . . . . . . . . . . . 2 . . . . Average Overweight (x) . | . . . . . . . . . . . . . . . . Largest Inventory Capacity 10 | 8 8 8 8 8 10 10 10 10 10 10 10 5 5 5 5 Average Capacity 8 | 8 8 8 8 8 9 10 10 10 10 10 9 5 5 5 5 Most Carried 10 | 6 8 8 8 8 10 10 10 10 10 10 10 5 5 5 5 Average Carried 8 | 6 7 8 7 7 9 9 10 9 10 7 8 4 4 4 5 Final Capacity 10 | 8 8 8 8 8 10 10 10 10 10 10 5 5 5 5 5 Final Carried 10 | 6 8 8 8 8 10 10 10 10 10 6 5 5 5 5 5 Class Distribution -------------------- 62% | Mutant 20% | Scavenger-Mutant 11% | Hacker-Mutant 5% | Sprinter Dominant Class ---------------- Mutant | -10/Materials Scavenger-Mutant | -10/Mines Scavenger-Mutant | -9/Materials Scavenger-Mutant | -9/Mines Scavenger-Mutant | -8/Materials Mutant | -7/Factory Mutant | -7/Lower Caves Mutant | -7/Lower Caves Mutant | -7/Data Miner Sprinter | -6/Proximity Caves Hacker-Mutant | -6/Factory Mutant | -6/Lower Caves Mutant | -6/Lower Caves Mutant | -6/Zion Hacker-Mutant | -6/Deep Caves Resources | -11 -10 -10 -9 -9 -8 -7 -7 -7 -7 -6 -6 -6 -6 -6 -6 ----------- Run | Scr Mat Min Mat Min Mat Fac Low Low Dat Pro Fac Low Low Zio Dee Matter Collected 1452 | 200 41 98 144 . 417 42 88 40 . 71 220 56 14 21 . Remotely 20 | . . . . . 20 . . . . . . . . . . Salvage Created 2494 | . 104 130 298 . 879 73 216 196 . 61 537 . . . . Parts 130 | . 9 10 20 . 50 5 5 5 . 4 22 . . . . Haulers Intercepted . | . . . . . . . . . . . . . . . . Recyclers Shooed 2 | . . . . . 2 . . . . . . . . . . Parts Field Recycled . | . . . . . . . . . . . . . . . . Retrieved Matter . | . . . . . . . . . . . . . . . . Parts Self-Destructed 12 | . . . . . . . 2 2 . 8 . . . . . Prevented 6 | . . . . . . . 3 3 . . . . . . . Kills | -11 -10 -10 -9 -9 -8 -7 -7 -7 -7 -6 -6 -6 -6 -6 -6 ------- Run | Scr Mat Min Mat Min Mat Fac Low Low Dat Pro Fac Low Low Zio Dee Combat Hostiles Destroyed 59 | . 2 5 11 . 19 1 4 4 . 2 11 . . . . Melee 20 | . . . . . 2 1 1 3 . 2 11 . . . . Guns 26 | . 1 2 6 . 17 . . . . . . . . . . Cannons 9 | . 1 3 5 . . . . . . . . . . . . Classes Destroyed 10 | . 2 1 1 . 3 2 . . . . 1 . . . . Worker 1 | . 1 . . . . . . . . . . . . . . Watcher 1 | . . . . . . 1 . . . . . . . . . Swarmer 21 | . . 3 7 . 4 . . 3 . 1 3 . . . . Grunt 21 | . 2 2 3 . 7 . 3 . . . 4 . . . . Brawler 1 | . . . . . 1 . . . . . . . . . . Sentry 8 | . . . 1 . 4 . 1 1 . . 1 . . . . Specialist 2 | . . . . . 2 . . . . . . . . . . Hunter 1 | . . . . . . . . . . . 1 . . . . Programmer 4 | . . . . . . 1 . . . 1 2 . . . . Heavy 1 | . . . . . 1 . . . . . . . . . . Best Kill Streak 4 | . 3 3 4 . 4 1 2 3 . 1 2 . . . . Combat Bots Only 4 | . 2 3 4 . 4 1 2 3 . 1 2 . . . . Max Kills in Single Turn 2 | . 2 1 1 . 1 1 1 1 . 1 1 . . . . Gunslinging . | . . . . . . . . . . . . . . . . Exploded . | . . . . . . . . . . . . . . . . Melee 1 | . . . . . 1 1 1 1 . 1 1 . . . . Uniques/NPCs Destroyed . | . . . . . . . . . . . . . . . . Combat | -11 -10 -10 -9 -9 -8 -7 -7 -7 -7 -6 -6 -6 -6 -6 -6 -------- Run | Scr Mat Min Mat Min Mat Fac Low Low Dat Pro Fac Low Low Zio Dee Damage Taken 5453 | . 79 247 381 . 1472 124 183 423 . 283 1877 . . . 384 Core 1396 | . 21 30 54 . 262 48 36 68 . 18 607 . . . 252 Absorbed by Shields . | . . . . . . . . . . . . . . . . Core Remaining (%) 78 | 100 . 79 . 86 52 . . . . 75 . . . . . Volleys Fired 104 | . 7 16 31 1 46 3 . . . . . . . . . Largest 2 | . 2 2 2 1 2 1 . . . . . . . . . Hottest 122 | . 80 80 100 100 122 61 . . . . . . . . . Shots Fired 194 | . 14 32 55 1 89 3 . . . . . . . . . Gun 147 | . 7 16 33 . 88 3 . . . . . . . . . Cannon 39 | . 7 16 15 . 1 . . . . . . . . . . Launcher . | . . . . . . . . . . . . . . . . Special 8 | . . . 7 1 . . . . . . . . . . . Kinetic 64 | . 7 16 24 . 17 . . . . . . . . . . Thermal 129 | . 7 16 31 1 71 3 . . . . . . . . . Explosive . | . . . . . . . . . . . . . . . . Electromagnetic 1 | . . . . . 1 . . . . . . . . . . Robot Hit Streak 27 | . 7 8 9 . 27 8 . . . . . . . . . Robot Miss Streak 3 | . 2 3 3 . 2 . . . . . . . . . . Penetration Max . | . . . . . . . . . . . . . . . . Secondary Targets . | . . . . . . . . . . . . . . . . Shots Hit Robots 227 | . 10 19 29 . 79 8 8 18 . 6 46 . . . 4 Core Hits 84 | . 5 7 14 . 32 1 1 4 . 2 16 . . . 2 Critical Kills 1 | . . . . . . . 1 . . . . . . . . Critical Parts Destroyed 4 | . . . . . . . 3 1 . . . . . . . Critical Strikes 15 | . . . . . 5 1 5 2 . . 2 . . . . Burn 4 | . . . . . 4 . . . . . . . . . . Smash 6 | . . . . . . . 4 2 . . . . . . . Sever 5 | . . . . . 1 1 1 . . . 2 . . . . Melee Attacks 208 | . 1 . . . 18 32 19 21 . 9 85 11 . 8 4 Impact 57 | . . . . . . 21 17 14 . 5 . . . . . Slashing 150 | . . . . . 18 11 2 7 . 4 85 11 . 8 4 Piercing . | . . . . . . . . . . . . . . . . Sneak Attacks 2 | . 1 . . . . . . . . . 1 . . . . Combat Hostiles 1 | . . . . . . . . . . . 1 . . . . Follow-up Attacks 19 | . . . . . . 2 1 6 . 1 9 . . . . Damage Inflicted 6298 | . 157 297 473 . 1667 262 273 665 . 231 2072 . . . 201 Guns 1736 | . 54 115 262 . 1285 20 . . . . . . . . . Cannons 501 | . 103 182 196 . 20 . . . . . . . . . . Explosions . | . . . . . . . . . . . . . . . . Melee 4010 | . . . . . 330 242 273 665 . 231 2068 . . . 201 Ramming 51 | . . . 15 . 32 . . . . . 4 . . . . Kinetic 602 | . 54 115 168 . 265 . . . . . . . . . . Thermal 1615 | . 103 182 290 . 1020 20 . . . . . . . . . Explosive . | . . . . . . . . . . . . . . . . Electromagnetic 20 | . . . . . 20 . . . . . . . . . . Impact 1010 | . . . . . . 203 233 467 . 107 . . . . . Slashing 3000 | . . . . . 330 39 40 198 . 124 2068 . . . 201 Piercing . | . . . . . . . . . . . . . . . . Highest Corruption 2 | . . . . . . . . . . . 2 2 2 2 . Average Corruption 1 | . . . . . . . . . . . 1 2 2 2 . Corruption Purged . | . . . . . . . . . . . . . . . . Effects 4 | . . . . . . . . . . . 1 . 2 1 . Message Errors 2 | . . . . . . . . . . . . . 2 . . Energy Discharges 1 | . . . . . . . . . . . . . . 1 . Data Loss (minor) 1 | . . . . . . . . . . . 1 . . . . Overload Shots . | . . . . . . . . . . . . . . . . Overflow Damage 482 | . . 32 . . . 47 80 96 . 6 200 . . . 21 Projectiles 32 | . . 32 . . . . . . . . . . . . . Explosions . | . . . . . . . . . . . . . . . . Melee 450 | . . . . . . 47 80 96 . 6 200 . . . 21 Knockbacks 4 | . . . . . . 2 . 1 . 1 . . . . . Impact 3 | . . . . . . 1 . 1 . 1 . . . . . Kinetic . | . . . . . . . . . . . . . . . . Secondary 1 | . . . . . . 1 . . . . . . . . . Self-Inflicted Damage . | . . . . . . . . . . . . . . . . Shots . | . . . . . . . . . . . . . . . . Rammed . | . . . . . . . . . . . . . . . . Targets Rammed 8 | . . . 5 . 2 . . . . . 1 . . . . Kicked 8 | . . . 5 . 2 . . . . . 1 . . . . Crushed . | . . . . . . . . . . . . . . . . Highest Temperature 329 | . 171 21 17 . 329 15 . . . . 17 . . . 1 Average Temperature 85 | . 87 12 8 . 95 15 . . . . 9 . . . 1 Received Heat Transfer 1221 | . 45 33 162 . 486 . 135 54 . 6 192 . . . 108 Effects 2 | . . . . . 2 . . . . . . . . . . Shutdowns 1 | . . . . . 1 . . . . . . . . . . Energy Bleed 1 | . . . . . 1 . . . . . . . . . . Siege Activations . | . . . . . . . . . . . . . . . . Robots Corrupted . | . . . . . . . . . . . . . . . . Combat Hostiles . | . . . . . . . . . . . . . . . . Parts Fried 8 | . . . . . . 2 5 1 . . . . . . . Impact Corruptions 12 | . . . . . . 2 4 6 . . . . . . . Robots Melted . | . . . . . . . . . . . . . . . . Combat Hostiles . | . . . . . . . . . . . . . . . . Parts Melted 15 | . . . 4 . 11 . . . . . . . . . . Heat Transferred 3478 | . 222 370 629 . 2220 37 . . . . . . . . . Parts Sabotaged . | . . . . . . . . . . . . . . . . Parts Stolen . | . . . . . . . . . . . . . . . . Parts Stripped . | . . . . . . . . . . . . . . . . Power Chain Reactions . | . . . . . . . . . . . . . . . . Missiles Intercepted . | . . . . . . . . . . . . . . . . Alert | -11 -10 -10 -9 -9 -8 -7 -7 -7 -7 -6 -6 -6 -6 -6 -6 ------- Run | Scr Mat Min Mat Min Mat Fac Low Low Dat Pro Fac Low Low Zio Dee Peak Influence 423 | . 86 144 192 . 273 70 . . . . 423 . . . . Initial 81 | . . 9 . . . 28 . . . . 81 . . . . Average 91 | . 21 99 70 . 59 34 . . . . 282 . . . . Maximum Alert Level 2 | . . . . . 1 . . . . . 2 . . . . Low Security (%) 84 | 100 100 100 100 100 95 100 . . . . 19 . . . . Level 1 12 | . . . . . 4 . . . . . 67 . . . . Level 2 2 | . . . . . . . . . . . 13 . . . . Level 3 . | . . . . . . . . . . . . . . . . Level 4 . | . . . . . . . . . . . . . . . . Level 5 . | . . . . . . . . . . . . . . . . High Security . | . . . . . . . . . . . . . . . . Max Security . | . . . . . . . . . . . . . . . . Squads Dispatched 17 | . 1 . 1 . 4 3 . . . . 8 . . . . Investigation 3 | . 1 . . . . . . . . . 2 . . . . Extermination 4 | . . . . . . 2 . . . . 2 . . . . Reinforcement 7 | . . . 1 . 3 1 . . . . 2 . . . . Assault . | . . . . . . . . . . . . . . . . Garrison 3 | . . . . . 1 . . . . . 2 . . . . Intercept . | . . . . . . . . . . . . . . . . Construction Impeded 1 | . . . . . . . . . . . 1 . . . . Haulers Reinforced . | . . . . . . . . . . . . . . . . Active Scanning Responses . | . . . . . . . . . . . . . . . . Cargo Convoy Interrupts . | . . . . . . . . . . . . . . . . Stealth | -11 -10 -10 -9 -9 -8 -7 -7 -7 -7 -6 -6 -6 -6 -6 -6 --------- Run | Scr Mat Min Mat Min Mat Fac Low Low Dat Pro Fac Low Low Zio Dee Distress Signals 6 | . . . 4 . 2 . . . . . . . . . . Communications Jammed . | . . . . . . . . . . . . . . . . Distress Signals . | . . . . . . . . . . . . . . . . Times Spotted 113 | . 8 5 18 . 29 4 6 4 . 5 31 . . . 3 Peak Tracking Total 6 | . 3 3 5 . 6 1 2 3 . 2 6 . . . 3 Tactical Retreats 11 | . . . 1 . 3 . 2 . . . 5 . . . . Traps | -11 -10 -10 -9 -9 -8 -7 -7 -7 -7 -6 -6 -6 -6 -6 -6 ------- Run | Scr Mat Min Mat Min Mat Fac Low Low Dat Pro Fac Low Low Zio Dee Traps Triggered 1 | . 1 . . . . . . . . . . . . . . Indirectly . | . . . . . . . . . . . . . . . . Trap Hack Attempts . | . . . . . . . . . . . . . . . . Triggered . | . . . . . . . . . . . . . . . . Disarmed . | . . . . . . . . . . . . . . . . Reprogrammed . | . . . . . . . . . . . . . . . . Reused . | . . . . . . . . . . . . . . . . Traps Extracted . | . . . . . . . . . . . . . . . . Installed . | . . . . . . . . . . . . . . . . Triggered 1 | . . . . . . . . 1 . . . . . . . Machines | -11 -10 -10 -9 -9 -8 -7 -7 -7 -7 -6 -6 -6 -6 -6 -6 ---------- Run | Scr Mat Min Mat Min Mat Fac Low Low Dat Pro Fac Low Low Zio Dee Machines Disabled . | . . . . . . . . . . . . . . . . Max in Single Turn . | . . . . . . . . . . . . . . . . Garrison Access 1 | . . . . . 1 . . . . . . . . . . Machines Sabotaged . | . . . . . . . . . . . . . . . . Garrisons Compromised . | . . . . . . . . . . . . . . . . Overloaded Fab Kills . | . . . . . . . . . . . . . . . . Hacking | -11 -10 -10 -9 -9 -8 -7 -7 -7 -7 -6 -6 -6 -6 -6 -6 --------- Run | Scr Mat Min Mat Min Mat Fac Low Low Dat Pro Fac Low Low Zio Dee Machines Accessed 35 | . 6 . 4 . 7 5 . 1 4 . 7 1 . . . Terminals 18 | . 5 . 3 . 4 1 . . . . 5 . . . . Fabricators 2 | . . . . . . 1 . . . . 1 . . . . Repair Stations 1 | . . . . . . 1 . . . . . . . . . Recycling Units 2 | . 1 . . . . 1 . . . . . . . . . Scanalyzers 5 | . . . 1 . 2 1 . . . . 1 . . . . Garrison Access 1 | . . . . . 1 . . . . . . . . . . Total Hacks 111 | . 19 . 15 . 21 11 . 1 25 . 18 1 . . . Successful 79 | . 17 . 10 . 13 4 . 1 25 . 8 1 . . . Failed 32 | . 2 . 5 . 8 7 . . . . 10 . . . . Catastrophic 4 | . . . . . . 1 . . . . 3 . . . . Database Lockouts . | . . . . . . . . . . . . . . . . Manual 61 | . 16 . 10 . 13 7 . . . . 9 . . 6 . Terminals 59 | . 18 . 11 . 14 2 . . . . 14 . . . . Fabricators 3 | . . . . . . 1 . . . . 2 . . . . Repair Stations 4 | . . . . . . 4 . . . . . . . . . Recycling Units 4 | . 1 . . . . 3 . . . . . . . . . Scanalyzers 13 | . . . 4 . 6 1 . . . . 2 . . . . Garrison Access 1 | . . . . . 1 . . . . . . . . . . Terminal Hacks 44 | . 10 . 2 . 3 . . 1 25 . 2 1 . . . Record 11 | . . . . . . . . . 11 . . . . . . Part Schematic 8 | . . . . . . . . . 8 . . . . . . Robot Schematic 3 | . . . . . . . . . 3 . . . . . . Robot Analysis 2 | . 2 . . . . . . . . . . . . . . Prototype ID Bank 4 | . 1 . . . . . . . 3 . . . . . . Open Door 2 | . . . . . . . . 1 . . . 1 . . . Open DSF 1 | . . . . . . . . . . . 1 . . . . Branch Access Points 2 | . 1 . 1 . . . . . . . . . . . . Terminal Index 1 | . 1 . . . . . . . . . . . . . . Fabricator Index 2 | . 1 . . . . . . . . . 1 . . . . Alert Level 2 | . 2 . . . . . . . . . . . . . . Unreport Threat 4 | . 1 . 1 . 2 . . . . . . . . . . Recall Investigation 1 | . 1 . . . . . . . . . . . . . . Zone Layout 1 | . . . . . 1 . . . . . . . . . . Fabricator Hacks . | . . . . . . . . . . . . . . . . Repair Station Hacks 2 | . . . . . . 2 . . . . . . . . . Scan Component 1 | . . . . . . 1 . . . . . . . . . Repair 1 | . . . . . . 1 . . . . . . . . . Recycling Unit Hacks 1 | . 1 . . . . . . . . . . . . . . Retrieve Components 1 | . 1 . . . . . . . . . . . . . . Scanalyzer 9 | . . . 4 . 4 . . . . . 1 . . . . Insert Component 5 | . . . 2 . 2 . . . . . 1 . . . . Analyze 4 | . . . 2 . 2 . . . . . . . . . . Garrison Access Hacks 1 | . . . . . 1 . . . . . . . . . . Seal Access 1 | . . . . . 1 . . . . . . . . . . Unauthorized Hacks 22 | . 6 . 4 . 5 2 . . . . 5 . . . . Terminals 20 | . 6 . 4 . 5 . . . . . 5 . . . . Track 3 | . 1 . . . 2 . . . . . . . . . . Assimilate 4 | . 2 . 1 . . . . . . . 1 . . . . Botnet 13 | . 3 . 3 . 3 . . . . . 4 . . . . Fabricators . | . . . . . . . . . . . . . . . . Repair Stations . | . . . . . . . . . . . . . . . . Recycling Units 2 | . . . . . . 2 . . . . . . . . . Monitor 1 | . . . . . . 1 . . . . . . . . . Mask 1 | . . . . . . 1 . . . . . . . . . Scanalyzers . | . . . . . . . . . . . . . . . . Garrison Access . | . . . . . . . . . . . . . . . . Data Cores Recovered . | . . . . . . . . . . . . . . . . Used . | . . . . . . . . . . . . . . . . Hacking Detections 26 | . 5 . 4 . 6 5 . . . . 6 . . . . Full Trace Events 3 | . . . 1 . . . . . . . 2 . . . . Feedback Events 1 | . . . . . . . . . . . 1 . . . . Corruption 1 | . . . . . . . . . . . 1 . . . . Feedback Blocked . | . . . . . . . . . . . . . . . . Robot Schematics Acquired 6 | . . . . . . . . . 3 . . . . 3 . Robots Built . | . . . . . . . . . . . . . . . . Authchips . | . . . . . . . . . . . . . . . . Time . | . . . . . . . . . . . . . . . . Total Robot Build Rating . | . . . . . . . . . . . . . . . . Part Schematics Acquired 24 | . . . 2 . 2 . . . 8 . . . . 12 . Parts Built . | . . . . . . . . . . . . . . . . Authchips . | . . . . . . . . . . . . . . . . Time . | . . . . . . . . . . . . . . . . Total Part Build Rating . | . . . . . . . . . . . . . . . . Parts Repaired 1 | . . . . . . 1 . . . . . . . . . Time 19 | . . . . . . 19 . . . . . . . . . Parts Recycled . | . . . . . . . . . . . . . . . . Recycled Matter . | . . . . . . . . . . . . . . . . Retrieved Matter . | . . . . . . . . . . . . . . . . Retrieved Components 8 | . 8 . . . . . . . . . . . . . . Parts Scanalyzed 5 | . . . 2 . 2 . . . . . 1 . . . . Part Schematics Acquired 4 | . . . 2 . 2 . . . . . . . . . . Parts Damaged . | . . . . . . . . . . . . . . . . Bothacking | -11 -10 -10 -9 -9 -8 -7 -7 -7 -7 -6 -6 -6 -6 -6 -6 ------------ Run | Scr Mat Min Mat Min Mat Fac Low Low Dat Pro Fac Low Low Zio Dee Used RIF Installer . | . . . . . . . . . . . . . . . . Robots Hacked 1 | . 1 . . . . . . . . . . . . . . Non-combat 1 | . 1 . . . . . . . . . . . . . . Combat . | . . . . . . . . . . . . . . . . Robot Hacks Applied 1 | . 1 . . . . . . . . . . . . . . parse_system 1 | . 1 . . . . . . . . . . . . . . Relay Couplers Released . | . . . . . . . . . . . . . . . . Fabnet Peak Effective % . | . . . . . . . . . . . . . . . . Robots Rewired . | . . . . . . . . . . . . . . . . Allies Hacked . | . . . . . . . . . . . . . . . . Hacks Repelled . | . . . . . . . . . . . . . . . . Allies | -11 -10 -10 -9 -9 -8 -7 -7 -7 -7 -6 -6 -6 -6 -6 -6 -------- Run | Scr Mat Min Mat Min Mat Fac Low Low Dat Pro Fac Low Low Zio Dee Total Allies 7 | . 1 . . . . . . . . 1 1 . . 4 . Largest Group 4 | . 1 1 1 1 1 1 . . . 1 1 . . 4 . Highest-Rated Group 155 | . 10 10 10 10 10 10 . . . 95 95 . . 155 . Highest-Rated Ally 95 | . 10 10 10 10 10 10 . . . 95 95 . . 41 . Total Orders 8 | . . 2 2 . 2 1 . . . . 1 . . . . STAY 5 | . . 1 1 . 1 1 . . . . 1 . . . . FOLLOW 3 | . . 1 1 . 1 . . . . . . . . . . Ally Attacks 16 | . . . . . . . . . . 10 6 . . . . Total Damage 404 | . . . . . . . . . . 321 83 . . . . Kills 3 | . . . . . . . . . . 3 . . . . . Allies Corrupted . | . . . . . . . . . . . . . . . . Allies Melted . | . . . . . . . . . . . . . . . . Intel | -11 -10 -10 -9 -9 -8 -7 -7 -7 -7 -6 -6 -6 -6 -6 -6 ------- Run | Scr Mat Min Mat Min Mat Fac Low Low Dat Pro Fac Low Low Zio Dee Robot Analysis Total 2 | . 2 . . . . . . . . . . . . . . Derelict Logs Recovered 7 | . . 1 . . . . . 2 . 1 . 1 1 1 . Drone Launches . | . . . . . . . . . . . . . . . . Drone Recoveries . | . . . . . . . . . . . . . . . . Exploration | -11 -10 -10 -9 -9 -8 -7 -7 -7 -7 -6 -6 -6 -6 -6 -6 ------------- Run | Scr Mat Min Mat Min Mat Fac Low Low Dat Pro Fac Low Low Zio Dee Turns Passed 6589 | 3 516 432 439 131 1073 798 339 497 93 261 700 252 101 850 104 Spaces Moved 6034 | 3 383 165 236 102 656 517 238 311 78 255 858 481 185 1362 204 Core . | . . . . . . . . . . . . . . . . Treads . | . . . . . . . . . . . . . . . . Legs 2958 | 3 383 165 236 102 656 517 238 311 78 75 193 1 . . . Wheels . | . . . . . . . . . . . . . . . . Hover . | . . . . . . . . . . . . . . . . Flight 3076 | . . . . . . . . . . 180 665 480 185 1362 204 Fastest Speed 24 | 120 120 120 120 120 100 120 120 120 120 28 24 40 54 54 44 Average Speed 81 | 120 120 120 120 120 117 120 120 120 120 55 48 42 54 54 44 Slowest Speed 190 | 120 120 120 120 120 120 120 120 120 120 120 190 120 54 54 54 Overloaded Moves . | . . . . . . . . . . . . . . . . Propulsion Burnouts . | . . . . . . . . . . . . . . . . Robots Hopped 4 | . . . . . . . . . . . 4 . . . . Cave-ins Triggered . | . . . . . . . . . . . . . . . . Exploration Rate (%) 41 | 2 59 24 19 31 51 14 38 46 68 42 26 68 53 93 28 Regions Visited 15 Branch Regions 10 Pre-discovered Areas 3 | . . . . . . . . . 1 . . . . 2 . Known Exits Taken 3 | . 1 . 1 1 . . . . . . . . . . . Unknown Exits Taken 12 | 1 . 1 . . 1 1 1 1 1 1 1 1 1 1 . Scrap Searched 12 | . . . . 1 . . . 4 . . . 2 2 3 . Spaces Dug 63 | . . . 6 1 6 17 7 1 . . 14 11 . . . Terrain Destroyed 63 | . . . 6 1 6 17 7 1 . . 14 11 . . . Melee 56 | . . . . . 6 17 7 1 . . 14 11 . . . Projectile 7 | . . . 6 1 . . . . . . . . . . . AOE . | . . . . . . . . . . . . . . . . Terrain Rammed . | . . . . . . . . . . . . . . . . Walls Destroyed . | . . . . . . . . . . . . . . . . Machines Disabled . | . . . . . . . . . . . . . . . . Actions | -11 -10 -10 -9 -9 -8 -7 -7 -7 -7 -6 -6 -6 -6 -6 -6 --------- Run | Scr Mat Min Mat Min Mat Fac Low Low Dat Pro Fac Low Low Zio Dee Total 7238 | 2 424 371 320 108 848 650 265 413 77 365 1026 510 186 1462 211 Wait 653 | . 21 183 37 2 36 73 11 72 . 92 50 . . 76 . Move 6011 | 2 382 164 235 101 655 516 237 310 77 254 849 480 184 1361 204 Hop 4 | . . . . . . . . . . . 4 . . . . Pick Up 61 | . 4 1 1 2 17 5 . 4 . 1 11 6 1 7 1 Fast Attach 49 | . 3 . 2 . 12 9 . 4 . 1 16 2 . . . Attach 23 | . . . 2 . 5 1 . . . 4 9 2 . . . Detach 5 | . . . . . 1 1 . . . . 3 . . . . Swap 46 | . 2 3 5 . 23 3 . 1 . 2 3 . . 4 . Drop 94 | . 4 4 2 2 33 12 . 8 . 4 7 9 1 6 2 Fire 104 | . 7 16 31 1 46 3 . . . . . . . . . Melee 180 | . 1 . . . 18 27 17 14 . 7 73 11 . 8 4 Ram . | . . . . . . . . . . . . . . . . Kick 8 | . . . 5 . 2 . . . . . 1 . . . . Crush . | . . . . . . . . . . . . . . . . Escape Stasis . | . . . . . . . . . . . . . . . . Rewire . | . . . . . . . . . . . . . . . . Trap . | . . . . . . . . . . . . . . . . Miscellaneous . | . . . . . . . . . . . . . . . . Route ------- -11/Scrapyard -10/Materials (discovered 3 exits: *Mat x2 / *Min) -10/Mines -9/Materials (discovered 2 exits: Mat / *Min) -9/Mines -8/Materials (discovered 2 exits: *Fac x2) -7/Factory -7/Lower Caves -7/Lower Caves -7/Data Miner -6/Proximity Caves -6/Factory (discovered 2 exits: Fac / *Low) -6/Lower Caves -6/Lower Caves -6/Zion (discovered 2 exits: [*Dee] / [*Pro]) -6/Deep Caves History --------- Turn | Location | Event 1 | -11/Scrapyard | Discovered new exit (range 3) 4 | -11/Scrapyard | Entered Materials 88 | -10/Materials | Discovered new exit (range 11) 104 | -10/Materials | Identified exit to Mines 306 | -10/Materials | Build established: Mutant 463 | -10/Materials | Discovered new exit (range 3) 520 | -10/Materials | Entered Mines 520 | -10/Mines | Accompanied by 1 ally 632 | -10/Mines | Learned 4 Materials zone layouts 678 | -10/Mines | Discovered new exit (range 15) 952 | -10/Mines | Entered Materials 952 | -9/Materials | Accompanied by 1 ally 952 | -9/Materials | Evolved 2 slots: Propulsion x1, Utility x1 953 | -9/Materials | Identified exit to Materials 1056 | -9/Materials | Identified exit to Mines 1391 | -9/Materials | Entered Mines 1391 | -9/Mines | Accompanied by 1 ally 1470 | -9/Mines | Build established: Scavenger-Mutant 1506 | -9/Mines | Discovered exit to Materials (range 11) 1522 | -9/Mines | Entered Materials 1522 | -8/Materials | Accompanied by 1 ally 1522 | -8/Materials | Evolved 2 slots: Utility x2 1653 | -8/Materials | Garrison activated, responded to threat 1811 | -8/Materials | Discovered new exit (range 2) 1866 | -8/Materials | Lost 4 parts (3u1w) 2316 | -8/Materials | Discovered new exit (range 4) 2580 | -8/Materials | Build established: Mutant 2595 | -8/Materials | Entered Factory 2595 | -7/Factory | Accompanied by 1 ally 2595 | -7/Factory | Evolved 2 slots: Propulsion x1, Utility x1 2689 | -7/Factory | Repaired Imp. Sensor Array 3376 | -7/Factory | Discovered new exit (range 8) 3393 | -7/Factory | Entered Lower Caves 3422 | -7/Lower Caves | Attracted the attention of an 0b10 checkpoint 3714 | -7/Lower Caves | Discovered new exit (range 12) 3718 | -7/Lower Caves | Encountered a Warlord checkpoint 3732 | -7/Lower Caves | Entered another Lower Caves area 3740 | -7/Lower Caves | Attracted the attention of an 0b10 checkpoint 3969 | -7/Lower Caves | Learned Factory trap positions 4116 | -7/Lower Caves | Learned 12 Factory zone layouts 4148 | -7/Lower Caves | Discovered new exit (range 10) 4229 | -7/Lower Caves | Entered Data Miner 4229 | -7/Data Miner | Discovered new exit (range 6) 4252 | -7/Data Miner | Met Data Miner 4273 | -7/Data Miner | Learned location of Section 7 (-2) 4273 | -7/Data Miner | Acquired the access code to Warlord's prototype stash 4295 | -7/Data Miner | Received God Mode back door access code from Data Miner 4322 | -7/Data Miner | Entered Proximity Caves 4334 | -6/Proximity Caves | Escorted by Enhanced Grunt 4380 | -6/Proximity Caves | Learned Factory terminal intel 4450 | -6/Proximity Caves | Lost 3 parts (1n2u) 4496 | -6/Proximity Caves | Discovered new exit (range 5) 4583 | -6/Proximity Caves | Entered Factory 4583 | -6/Factory | Accompanied by 1 ally 4583 | -6/Factory | Evolved 2 slots: Propulsion x1, Utility x1 4584 | -6/Factory | Identified exit to Factory 4585 | -6/Factory | Loaded intel: 66 trap records 4586 | -6/Factory | Loaded intel: 25 terminal locations 4725 | -6/Factory | Build established: Sprinter 5112 | -6/Factory | Garrison activated, responded to threat 5165 | -6/Factory | Build established: Hacker-Mutant 5181 | -6/Factory | Core integrity fell below 50% 5226 | -6/Factory | Lost 10 parts (1p5n3u1w) 5247 | -6/Factory | Discovered new exit (range 10) 5283 | -6/Factory | Entered Lower Caves 5283 | -6/Lower Caves | Learned 4 Factory zone layouts 5472 | -6/Lower Caves | Build established: Mutant 5518 | -6/Lower Caves | Encountered a Warlord checkpoint 5521 | -6/Lower Caves | Discovered new exit (range 7) 5535 | -6/Lower Caves | Entered another Lower Caves area 5543 | -6/Lower Caves | Learned location of 1 exit from Factory 5621 | -6/Lower Caves | Discovered new exit (range 10) 5636 | -6/Lower Caves | Entered Zion 5656 | -6/Zion | Found GAL Module 5667 | -6/Zion | Discovered new exit (range 8) 5701 | -6/Zion | System corruption cleaned by Quarantine Array 5779 | -6/Zion | Learned Factory interactive machine intel 5807 | -6/Zion | Learned location of Armory (-3) 5822 | -6/Zion | Given A8's code to call for help 5834 | -6/Zion | Learned location of Warlord (-4) 5890 | -6/Zion | Acquired unknown access codes intercepted by a Zionite 5973 | -6/Zion | Given the Hacking Drone Bay 5974 | -6/Zion | Found Prototype Device 6131 | -6/Zion | Found Prototype Special Weapon 6132 | -6/Zion | Identified RU-N14's Throwing Claymores 6135 | -6/Zion | Found RU-N14's Throwing Claymores 6137 | -6/Zion | Identified Hacking Drone Bay 6140 | -6/Zion | Found RU-N14's Throwing Claymores 6142 | -6/Zion | Found RU-N14's Throwing Claymores 6342 | -6/Zion | Imprinted 6344 | -6/Zion | Declared Zion's savior 6402 | -6/Zion | Opened final containment barrier to the Deep Caves 6410 | -6/Zion | Discovered new exit (range 3) 6410 | -6/Zion | Saw the warning signs outside the Deep Caves entrance 6431 | -6/Zion | Build established: Hacker-Mutant 6486 | -6/Zion | Entered Deep Caves 6486 | -6/Deep Caves | Accompanied by 4 allies 6578 | -6/Deep Caves | Attacked by Z-Imprinter 6585 | -6/Deep Caves | Core integrity fell below 20% 6590 | -6/Deep Caves | Destroyed by RD-OAL(z) with Zionite Laser-S Last Messages --------------- 06410_ The room is plastered with warning signs of various forms. LOCATION=UNKNOWN GOAL=ESCAPE 06488_ 4G-V2T(M): "Okay, we didn't really expect you'd be crazy enough to head out this way. We'll go back and get... reinforcements... yeah." 06488_ 4G-V2T(M) slips into the shadows. 06489_ ZH-XG9(M) slips into the shadows. 06489_ 5N-ZRD(M) slips into the shadows. 06490_ FX-PR1(M) slips into the shadows. 06494_ Dropped Imp. Carbon-fiber Leg. 06496_ Dropped RU-N14's Throwing Claymores. 06496_ Acquired Imp. Carbon-fiber Leg. 06569_ H8-AH5(o) is busy at the terminal. 06570_ NEW_ZION: Z-Facility proximity alert. Z-Imprinter: GET AWAY FROM HERE! I've worked too hard for our future just to have you ruin everything! 06579_ Destroyed Prototype Hover Unit. 06584_ Mic. Nuclear Core destroyed. 06588_ Adv. Weight Redist. System destroyed. [Achievement: I Think I Know What's Going On] Map ----- +----------------------------------------------------+ | | | | | | | | | | | | | | | | | | | | | | | ?????????????????????????????????????????????????? | | ##?????????????????????????????????????????????### | | ????????????????????????????????????????###?## | | ?????##???????????????????????####????## ## | | ##?### ##?????######?????????## #????# | | ## # #???### ##????##### #####?# | | ##### #???## ## ##?# | | #???# #?# | | #???# #?## # | | #????## ### ##?# # | | #?????###??## ##?## # | | ##??????????# #??### ## | | ############ #????# ## | | z ###### ## | | @I ## # | | z ## | | ;########### #### ## | | ;#;#?????????# #### | | #####?????????# ## | | #?????????##### ##? | | #????????## ##? | | #?????### #? | | #?????# ## ## | | #?????## ### # | | ##??????## ### | | #????????### ## | | #????###??## | | | #???## #??## # ### | | ##???# #### ## #?? | | ##????# ### ## #?? | | #??????# ## ## #?? | | ??????##### # #?? | | ?????????# #?? | | #??????### ## #?? | | ##?????## ####### #?? | | #??????# ##????# ##? | | #??????# #????# #? | | ??????# ##???# #? | | ?? ??????## ##??# ##? | +----------------------------------------------------+ Best States ------------- Heat Dissipation 53 Coolant Potential 65 Energy Generation 18 Energy Capacity 500 Matter Stores 300 Matter Capacity 300 Sight Range 22 Robot Scan Range 15 Terrain Scan Range 16 Terrain Scan Density 10 Additional Mass Support 9 Armor Coverage 225 Weapon Cycling 15 Evasion (%) 65 Targeting Accuracy 5 Melee Accuracy 32 Target Analysis 5 Core Analysis 6 Offensive Hacking 22 Defensive Hacking 21 Item Schematics ----------------- Med. Storage Unit | -9/Materials | Scanalyzed Datajack | -9/Materials | Scanalyzed Imp. Flight Unit | -8/Materials | Scanalyzed Axe | -8/Materials | Scanalyzed Combat Drone Bay | -7/Data Miner | Free Lgt. Regenerative Plating | -7/Data Miner | Free Cld. Cesium-ion Thruster | -7/Data Miner | Free Gravity Neutralizing Apparatus | -7/Data Miner | Free Prc. Rocket Launcher | -7/Data Miner | Free Hvy. Treads | -7/Data Miner | Free Lyr. Heavy Armor Plating | -7/Data Miner | Free Imp. Remote Datajack | -7/Data Miner | Free Phase Cannon | -6/Zion | Archive Point Defense System | -6/Zion | Archive Power Amplifier | -6/Zion | Archive Overload Regulator | -6/Zion | Archive Coil Gun | -6/Zion | Archive Hvy. Beamcaster | -6/Zion | Archive Matter Compressor | -6/Zion | Archive Adv. Thermal Generator | -6/Zion | Archive Adv. Thermal Shield | -6/Zion | Archive Imp. Trap Scanner | -6/Zion | Archive Imp. Arc Projector | -6/Zion | Archive Adv. Plasma Cannon | -6/Zion | Archive Robot Schematics ------------------ M-22 Extractor | -7/Data Miner | Free G-47 Trooper | -7/Data Miner | Free G-50 Soldier | -7/Data Miner | Free B-48 Gladiator | -6/Zion | Archive C-57 Dissector | -6/Zion | Archive R-10 Processor | -6/Zion | Archive Fabricated ------------ Nothing Alien Tech Used ----------------- None Achievements -------------- I Think I Know What's Going On Challenges ------------ None Game ------ Seed ShockRecyclingCompressor Manual? 0 Play Time 01:26:48 Cumulative 69.8 hours Start 2021.11.27 @ 14:41:42 End 2021.11.27 @ 17:00:33 Sessions 1 Manual Loads 0 Difficulty Rogue Special Mode None Game No. 39 Rogue 37 Adventurer 2 Explorer 0 Win Type - Total 2 Types 2/0/0/0/0/0/0/0/0 Lore% 50 Gallery% 61 Achievement% 48 Wizard Run 0 Options --------- ASCII 0 Keyboard 0 Movement Numpad Keybinds 0 Fullscreen 2 Font 24/Smallcaps Map View 76x50 Tactical HUD 1 Map Filters NONE Filters NONE Steam 1 RUN: 9a24c158-3b18-44d4-91a9-a8bb4a6375c1